Cogmind - Beta 16 @@@ ROGUE MODE // 2025.11.01 @ 00:05:11 Player: ZLD1 Result: Destroyed by Piercing Trap Performance ------------- Evolutions (0) 0 Regions Visited (3) 600 Robots Destroyed (0) 0 Value Destroyed (0) 0 Prototype IDs (0) 0 Alien Tech Used (0) 0 Bonus (0) 0 TOTAL SCORE: 600 Bonus ------- None Cogmind --------- Core Integrity 0/250 Matter 230/300 Energy 98/100 System Corruption 0% Temperature Cool (1) Movement Core (50) Location -10/Subcaves Parts ------- > --- POWER (1) -------- (None) > --- PROPULSION (2) --- (None) > --- UTILITY (2) ------ Improved Heat Sink Terrain Scanner > --- WEAPON (2) ------- (None) > --- INVENTORY (5) ---- Light Angular Momentum Engine Small Storage Unit Machine Analyzer Scrap Shield Peak State ------------ > --- POWER ------------ (None) > --- PROPULSION ------- Aluminum Leg Aluminum Leg > --- UTILITY ---------- Improved Heat Sink Terrain Scanner > --- WEAPON ----------- Beamcaster > --- INVENTORY -------- Light Ion Engine Light Angular Momentum Engine Small Storage Unit Scrap Shield [Rating: 12] Favorites ----------- Power None Propulsion Aluminum Leg Leg Aluminum Leg Hover Unit Hover Unit Utility Terrain Scanner Device Terrain Scanner Weapon Beamcaster Energy Gun Beamcaster Build | -11 -10 -10 -10 ------- Run | Yrd Mat Min Sub Slots Evolved . | . . . . Power . | . . . . Propulsion . | . . . . Utility . | . . . . Weapon . | . . . . Parts Attached 6 | . 2 . 4 Power . | . . . . Engine . | . . . . Core . | . . . . Reactor . | . . . . Propulsion 3 | . 1 . 2 Treads . | . . . . Leg 2 | . . . 2 Wheel . | . . . . Hover 1 | . 1 . . Flight . | . . . . Utility 2 | . 1 . 1 Device 2 | . 1 . 1 Storage . | . . . . Processor . | . . . . Hackware . | . . . . Protection . | . . . . Artifact . | . . . . Weapon 1 | . . . 1 Energy Gun 1 | . . . 1 Energy Cannon . | . . . . Ballistic Gun . | . . . . Ballistic Cannon . | . . . . Launcher . | . . . . Special Weapon . | . . . . Impact Weapon . | . . . . Slashing Weapon . | . . . . Piercing Weapon . | . . . . Special Melee Weapon . | . . . . Unidentified Prototypes . | . . . . Parts Lost 4 | . 1 . 3 Power . | . . . . Propulsion 3 | . 1 . 2 Utility . | . . . . Weapon 1 | . . . 1 Highest Loss Streak 3 | . 1 . 3 To Critical Strikes 1 | . . . 1 Average Backups 3 | 2 4 4 3 Power 1 | . 1 1 1 Propulsion . | 1 2 2 . Utility 1 | . 1 1 2 Weapon . | . . . . Tool/Special . | . . . . Unused Backups 5 | . . . 5 Power 2 | . . . 2 Propulsion . | . . . . Utility 3 | . . . 3 Weapon . | . . . . Tool/Special . | . . . . Average Slot Usage (%) 33 | . 12 14 47 Leg 14 | . . . 24 Hover 3 | . 10 . . Device 13 | . 2 14 19 Energy Gun 2 | . . . 3 Peak Build Rating 12 | . 2 1 12 Average Rating 3 | . . 1 5 On Entrance . | . . 1 1 Avg Prop Armor Cover (%) . | . . . . Naked Turns 13 | . 13 . . Heaviest Build 7 | . 1 1 7 Greatest Support 20 | 3 6 3 20 Greatest Overweight (x) . | . . . . Average Overweight (x) . | . . . . Largest Inventory Capacity 5 | 5 5 5 5 Average Capacity 5 | 5 5 5 5 Most Carried 5 | 4 5 4 5 Average Carried 4 | 2 4 4 4 Final Capacity 5 | 5 5 5 5 Final Carried 5 | 4 4 4 5 Class Distribution -------------------- 100% | Mutant Dominant Class ---------------- Mutant | -10/Materials Mutant | -10/Mines Mutant | -10/Subcaves Resources | -11 -10 -10 -10 ----------- Run | Yrd Mat Min Sub Matter Collected 160 | 145 . . 15 Remotely . | . . . . Salvage Created . | . . . . Parts . | . . . . Haulers Intercepted . | . . . . Recyclers Shooed . | . . . . Parts Field Recycled . | . . . . Retrieved Matter . | . . . . Parts Self-Destructed 1 | . . . 1 Prevented . | . . . . Parts Restored . | . . . . Kills | -11 -10 -10 -10 ------- Run | Yrd Mat Min Sub Combat Hostiles Destroyed . | . . . . Classes Destroyed . | . . . . Best Kill Streak . | . . . . Combat Bots Only . | . . . . Max Kills in Single Turn . | . . . . Gunslinging . | . . . . Exploded . | . . . . Melee . | . . . . Uniques/NPCs Destroyed . | . . . . Combat | -11 -10 -10 -10 -------- Run | Yrd Mat Min Sub Hostile Shots Fired 46 | . 16 . 30 Missed 12 | . 3 . 9 Hits 34 | . 13 . 21 Projectile 34 | . 13 . 21 Critical Strikes 2 | . . . 2 Damage Taken 616 | . 119 . 497 Core 268 | . 83 . 185 Absorbed by Shields . | . . . . Core Remaining (%) 100 | 100 . . . Volleys Fired 4 | . . . 4 Largest 1 | . . . 1 Hottest 75 | . . . 75 Shots Fired 4 | . . . 4 Gun 4 | . . . 4 Cannon . | . . . . Launcher . | . . . . Special . | . . . . Kinetic . | . . . . Thermal 4 | . . . 4 Explosive . | . . . . Electromagnetic . | . . . . Robot Hit Streak 2 | . . . 2 Robot Miss Streak 1 | . . . 1 Penetration Max . | . . . . Secondary Targets . | . . . . Shots Hit Robots 3 | . . . 3 Core Hits . | . . . . Critical Kills . | . . . . Critical Parts Destroyed . | . . . . Critical Strikes . | . . . . Melee Attacks . | . . . . Impact . | . . . . Slashing . | . . . . Piercing . | . . . . Sneak Attacks . | . . . . Combat Hostiles . | . . . . Follow-up Attacks . | . . . . Damage Inflicted 80 | . 14 . 66 Guns 66 | . . . 66 Cannons . | . . . . Explosions . | . . . . Melee . | . . . . Ramming 14 | . 14 . . Kinetic . | . . . . Thermal 66 | . . . 66 Explosive . | . . . . Electromagnetic . | . . . . Impact . | . . . . Slashing . | . . . . Piercing . | . . . . Highest Corruption . | . . . . Average Corruption . | . . . . Corruption Purged . | . . . . Corruption Blocked . | . . . . Overload Shots . | . . . . Overflow Damage . | . . . . Projectiles . | . . . . Explosions . | . . . . Melee . | . . . . Knockbacks . | . . . . Impact . | . . . . Kinetic . | . . . . Secondary . | . . . . Self-Inflicted Damage 7 | . 7 . . Shots . | . . . . Rammed 3 | . 3 . . Targets Rammed 3 | . 3 . . Kicked . | . . . . Crushed . | . . . . Highest Temperature . | . . . . Average Temperature . | . . . . Received Heat Transfer 84 | . 6 . 78 Siege Activations . | . . . . Martial Activations . | . . . . Shielding Activations . | . . . . Robots Disrupted . | . . . . Combat Hostiles . | . . . . Robots Corrupted . | . . . . Combat Hostiles . | . . . . Parts Fried . | . . . . Impact Corruptions . | . . . . Robots Melted . | . . . . Combat Hostiles . | . . . . Parts Melted . | . . . . Heat Transferred 111 | . . . 111 Parts Sabotaged . | . . . . Parts Stolen . | . . . . Parts Stripped . | . . . . Power Chain Reactions . | . . . . Alert | -11 -10 -10 -10 ------- Run | Yrd Mat Min Sub Maximum Alert Level . | . . . . Low Security (%) 100 | 100 100 100 . Level 1 . | . . . . Level 2 . | . . . . Level 3 . | . . . . Level 4 . | . . . . Level 5 . | . . . . High Security . | . . . . Max Security . | . . . . Peak Influence 65 | . 65 17 . Initial 17 | . . 17 . Average 10 | . 11 11 . Influence Increases 75 | . 75 . . Lose Combat Pursuer 75 | . 75 . . Influence Decreases 75 | . 30 45 . Entered New Map 28 | . . 28 . Time Decay 37 | . 20 17 . Lost Part 10 | . 10 . . Squads Dispatched 4 | . 4 . . Investigation 1 | . 1 . . Extermination . | . . . . Reinforcement 3 | . 3 . . Assault . | . . . . Garrison . | . . . . Intercept . | . . . . Searches Triggered . | . . . . Construction Impeded . | . . . . Haulers Reinforced . | . . . . Active Scanning Responses . | . . . . Cargo Convoy Interrupts . | . . . . Stealth | -11 -10 -10 -10 --------- Run | Yrd Mat Min Sub Distress Signals . | . . . . Communications Jammed . | . . . . Distress Signals . | . . . . Times Spotted 16 | . 9 . 7 Peak Tracking Total 6 | . 5 . 6 Tactical Retreats 2 | . 2 . . Traps | -11 -10 -10 -10 ------- Run | Yrd Mat Min Sub Traps Triggered 1 | . . . 1 Indirectly . | . . . . Trap Hack Attempts . | . . . . Triggered . | . . . . Disarmed . | . . . . Reprogrammed . | . . . . Reused . | . . . . Traps Extracted . | . . . . Installed . | . . . . Triggered . | . . . . Machines | -11 -10 -10 -10 ---------- Run | Yrd Mat Min Sub Machines Disabled . | . . . . Max in Single Turn . | . . . . Machines Repaired . | . . . . Machines Dismantled . | . . . . Machines Sabotaged . | . . . . Overloaded Fab Kills . | . . . . Hacking | -11 -10 -10 -10 --------- Run | Yrd Mat Min Sub Machines Accessed 2 | . 2 . . Terminals 2 | . 2 . . Fabricators . | . . . . Repair Stations . | . . . . Recycling Units . | . . . . Scanalyzers . | . . . . Garrison Access . | . . . . Total Hacks 3 | . 3 . . Successful . | . . . . Failed 3 | . 3 . . Catastrophic 2 | . 2 . . Database Lockouts . | . . . . Manual 3 | . 3 . . Terminals 3 | . 3 . . Fabricators . | . . . . Repair Stations . | . . . . Recycling Units . | . . . . Scanalyzers . | . . . . Garrison Access . | . . . . Terminal Hacks . | . . . . Fabricator Hacks . | . . . . Repair Station Hacks . | . . . . Recycling Unit Hacks . | . . . . Scanalyzer . | . . . . Garrison Access Hacks . | . . . . Unauthorized Hacks . | . . . . Terminals . | . . . . Fabricators . | . . . . Repair Stations . | . . . . Recycling Units . | . . . . Scanalyzers . | . . . . Garrison Access . | . . . . Data Cores Recovered . | . . . . Used . | . . . . Hacking Detections 2 | . 2 . . Full Trace Events 1 | . 1 . . Feedback Events . | . . . . Feedback Blocked . | . . . . Robot Schematics Acquired . | . . . . Robots Built . | . . . . Authchips . | . . . . Time . | . . . . Total Robot Build Rating . | . . . . Part Schematics Acquired . | . . . . Parts Built . | . . . . Authchips . | . . . . Time . | . . . . Total Part Build Rating . | . . . . Part Studies Acquired . | . . . . Parts Repaired . | . . . . Time . | . . . . Parts Recycled . | . . . . Recycled Matter . | . . . . Retrieved Matter . | . . . . Retrieved Components . | . . . . Parts Scanalyzed . | . . . . Part Schematics Acquired . | . . . . Parts Damaged . | . . . . Bothacking | -11 -10 -10 -10 ------------ Run | Yrd Mat Min Sub Used RIF Installer . | . . . . Robots Hacked . | . . . . Non-combat . | . . . . Combat . | . . . . Robot Hacks Applied . | . . . . Relay Couplers Released . | . . . . Fabnet Peak Effective % . | . . . . Robots Rewired . | . . . . Allies Hacked . | . . . . Hacks Repelled . | . . . . Allies | -11 -10 -10 -10 -------- Run | Yrd Mat Min Sub Total Allies . | . . . . Largest Group . | . . . . Highest-Rated Group . | . . . . Highest-Rated Ally . | . . . . Total Orders . | . . . . Ally Attacks . | . . . . Total Damage . | . . . . Kills . | . . . . Allies Corrupted . | . . . . Allies Melted . | . . . . Intel | -11 -10 -10 -10 ------- Run | Yrd Mat Min Sub Active Infowar (turns) 276 | . 15 41 220 Terrain 276 | . 15 41 220 Robot Analysis Total . | . . . . Derelict Logs Recovered 1 | . . 1 . Drone Launches . | . . . . Drone Recoveries . | . . . . Exploration | -11 -10 -10 -10 ------------- Run | Yrd Mat Min Sub Turns Passed 393 | 22 110 41 220 Spaces Moved 374 | 35 179 32 128 Core 109 | 35 41 32 1 Treads . | . . . . Legs 127 | . . . 127 Wheels . | . . . . Hover 138 | . 138 . . Flight . | . . . . Fastest Speed 50 | 50 50 50 50 Average Speed 77 | 50 57 50 119 Slowest Speed 120 | 50 60 50 120 Overloaded Moves . | . . . . Propulsion Burnouts . | . . . . Robots Hopped . | . . . . Potential Cave-ins . | . . . . Cave-ins Triggered . | . . . . Exploration Rate (%) 22 | 3 56 14 18 Regions Visited 3 Branch Regions 2 Pre-discovered Areas . | . . . . Known Exits Taken . | . . . . Unknown Exits Taken 3 | 1 1 1 . Scrap Searched . | . . . . Spaces Dug . | . . . . Terrain Destroyed . | . . . . Melee . | . . . . Projectile . | . . . . AOE . | . . . . Terrain Rammed . | . . . . Walls Destroyed . | . . . . Machines Disabled . | . . . . Actions | -11 -10 -10 -10 --------- Run | Yrd Mat Min Sub Total 470 | 38 185 56 191 Wait 76 | . . 25 51 Move 371 | 34 178 31 128 Hop . | . . . . Pick Up 9 | 4 2 . 3 Fast Attach 2 | . . . 2 Attach 4 | . 2 . 2 Detach . | . . . . Swap . | . . . . Drop 1 | . . . 1 Fire 4 | . . . 4 Melee . | . . . . Ram 3 | . 3 . . Kick . | . . . . Crush . | . . . . Escape Stasis . | . . . . Rewire . | . . . . Trap . | . . . . Miscellaneous . | . . . . Route ------- -11/Scrapyard -10/Materials (discovered 2 exits: *Mat / [*Min]) -10/Mines (discovered 2 exits: Mat / [*Sub]) -10/Subcaves History --------- Turn | Location | Event 7 | -11/Scrapyard | Discovered new exit (range 14) 23 | -11/Scrapyard | Entered Materials 106 | -10/Materials | Discovered new exit (range 3) 131 | -10/Materials | Discovered new exit (range 6) 133 | -10/Materials | Entered Mines 138 | -10/Mines | Met a Derelict bent on vengeance 139 | -10/Mines | Identified exit to Materials 161 | -10/Mines | Discovered new exit (range 6) 174 | -10/Mines | Entered Subcaves 175 | -10/Subcaves | Approached by a straggling Scientist 279 | -10/Subcaves | Ambushed by swarm of Subdwellers 321 | -10/Subcaves | Core integrity fell below 50% 330 | -10/Subcaves | Build established: Mutant 338 | -10/Subcaves | Shifting Twisted Machinery released Battle Cannon 346 | -10/Subcaves | Core integrity fell below 20% 347 | -10/Subcaves | Shifting Twisted Machinery released Piercing Trap 365 | -10/Subcaves | Lost 5 allies 394 | -10/Subcaves | Destroyed by Piercing Trap Last Messages --------------- 00306_ Acquired Beamcaster. 00309_ OS-ZLI(g) suffers critical hit (Destroy). 00309_ Acquired Imp. Heat Sink. 00316_ Subatomizers dissect the Sub. Optics. 00317_ OS-ZLI(g) destroyed. F7-NYE(c): "I think it's somewhere west of here" 00334_ F7-NYE(c) destroyed. Battle Cannon falls loose from the Twisted Machinery. Piercing Trap falls loose from the Twisted Machinery. 00348_ Dropped Lgt. Ion Engine. 00348_ Acquired Machine Analyzer. 00349_ Acquired 15 matter. 00353_ Aluminum Leg destroyed. 00366_ Critical hit (Destroy). 00366_ Beamcaster destroyed. 00394_ Triggered Piercing Trap. 00394_ Spikes shoot up from the floor. 00394_ Critical hit (Impale). 00394_ Aluminum Leg destroyed. 00394_ Critical hit (Impale). Map ----- +----------------------------------------------------+ | ?????????????????????????????????????????????????? | | ?????????????????????????????????????????????????? | | ?????????????????????????????????????????????????? | | ?????????????????????????????????????????????????? | | ?????????????????????????????????????????????????? | | ?????????????????????????????????????????????????? | | ?????????????????????????????????????????????????? | | ?????????????????????????????????????????????????? | | ?????????????????????????????????????????????????? | | ?????????????????????????????????????????????????? | | ?????????????????????????????????????????????????? | | ?????????????????????????????????????????????????? | | ?????????????????????????????????????????????????? | | ???????????????????????????" ""??????????????????? | | ???????????????????????????""" ??????????????????? | | ??????????????????????????? ?????#????????????? | | ??????????????????????????? "#?## ?????????????? | | ??????????????????????????? ""## ??????????????? | | ???????????? ? ??????????## " ?? #???????????? | | ???????????? ????????## ?? #???????????? | | ????????????? ######## #?? #????????????? | | ??????????????? #? ###??????????? | | ????????????????? ## #??????????? | | ???????????????????# #???????????? | | ???????????????????# #????????????? | | ???????????????????# @ ##???????????? | | ???????????????????## ##??????????? | | ????????????????????#####^ #??????????? | | ???????????????????????## ##?????????? | | ??????????????????????##^ #?????????? | | ??????????????????##?## ## #????????? | | ??????????????????# ## ##?? #????????? | | ??????????????????# #??????????????? | | ??????????????????## ###### ##??????????????? | | ???????????????????# ^ #?######???????????????? | | ???????????????## ## ## ##????????????????? | | ???????????????# ## #?????????????? | | ???????????????# # #?????????????? | | ?????????????? ?###### ## ####??????????? | | ?????????????## ?????###R #####????## ##?????????? | | ??????????????#?????## ##????????# ###??????? | | ????????????????????# ##???????## #?????? | | ????????????????????# ## ##???????# #?????? | | ????????????????????#### ###?##### #?#?? | | ??????????????????????## # ### # ##??? | | ??????????????????????#""""" ##?? " | | ??????????????????????### # ### "" | | ???????????????????????# ## # ## "" | | ?????????????????????? " #### ## &"" | | ?????????????????????### ### #??##### ## "" | +----------------------------------------------------+ Best States ------------- Heat Dissipation 39 Energy Generation 5 Energy Capacity 100 Matter Stores 245 Matter Capacity 300 Sight Range 16 Terrain Scan Range 14 Terrain Scan Density 10 Evasion (%) 55 Item Schematics ----------------- None Robot Schematics ------------------ None Fabricated ------------ Nothing Repaired ---------- Nothing Studied --------- None Alien Tech Used ----------------- None Achievements -------------- None Challenges ------------ None Game ------ Seed SingularityLargeDatajack Manual? 0 Play Time 00:07:26 Cumulative 66.8 hours Start 2025.11.01 @ 00:00:09 End 2025.11.01 @ 00:05:11 Sessions 1 Manual Loads 0 Difficulty Rogue Special Mode None Game No. 160 Rogue 160 Adventurer 0 Explorer 0 Win Type - Total 1 Types 1/0/0/0/0/0/0/0/0/0 Lore% 36 Gallery% 38 Achievement% 22 Wizard Run 0 Options --------- Layout 1 ASCII 0 Keyboard 0 Movement Mouse Keybinds 0 Fullscreen 0 Font 24/Smallcaps Map View 59x39 Zoom Use 0% Tactical HUD 1 Map Filters NONE Filters NONE Steam 1 RUN: 27100edd-b1ec-47c2-ac2f-1365dc930546